Cogmind - Beta 15 @@@ ROGUE MODE // 2025.08.24 @ 14:34:42 Player: NQH Result: Destroyed by G-34 Mercenary with Small Laser Performance ------------- Evolutions (1) 500 Regions Visited (2) 400 Robots Destroyed (3) 15 Value Destroyed (101) 101 Prototype IDs (2) 40 Alien Tech Used (0) 0 Bonus (200) 200 TOTAL SCORE: 1256 Bonus ------- Pacifist 200 Cogmind --------- Core Integrity 0/400 Matter 226/300 Energy 100/100 System Corruption 2% Temperature Cool (6) Movement Core (50) Location -9/Materials Parts ------- > --- POWER (1) -------- (None) > --- PROPULSION (4) --- (None) > --- UTILITY (2) ------ Signal Interpreter > --- WEAPON (2) ------- (None) > --- INVENTORY (5) ---- Ion Engine Light Nuclear Core Signal Interpreter Small Laser Light Assault Rifle Peak State ------------ > --- POWER ------------ Heavy Ion Engine > --- PROPULSION ------- VTOL Module VTOL Module VTOL Module VTOL Module > --- UTILITY ---------- Signal Interpreter > --- WEAPON ----------- EM Pulse Gun > --- INVENTORY -------- Ion Engine Flight Unit Medium Storage Unit Signal Interpreter [Rating: 13] Favorites ----------- Power Ion Engine Engine Ion Engine Power Core Light Nuclear Core Propulsion Wheel Wheel Wheel Flight Unit VTOL Module Utility Signal Interpreter Storage Medium Storage Unit Processor Signal Interpreter Weapon EM Pulse Gun Energy Gun EM Pulse Gun Ballistic Gun Light Assault Rifle Special Weapon Welding Torch Slashing Weapon Mining Claw Build | -11 -10 -9 ------- Run | Yrd Mat Mat Slots Evolved 2 | . . 2 Power . | . . . Propulsion 2 | . . 2 Utility . | . . . Weapon . | . . . Parts Attached 27 | . 6 21 Power 3 | . 1 2 Engine 2 | . 1 1 Core 1 | . . 1 Reactor . | . . . Propulsion 15 | . 2 13 Treads . | . . . Leg . | . . . Wheel 8 | . 2 6 Hover . | . . . Flight 7 | . . 7 Utility 2 | . 2 . Device . | . . . Storage 1 | . 1 . Processor 1 | . 1 . Hackware . | . . . Protection . | . . . Artifact . | . . . Weapon 7 | . 1 6 Energy Gun 2 | . 1 1 Energy Cannon . | . . . Ballistic Gun 1 | . . 1 Ballistic Cannon . | . . . Launcher . | . . . Special Weapon 2 | . . 2 Impact Weapon . | . . . Slashing Weapon 2 | . . 2 Piercing Weapon . | . . . Special Melee Weapon . | . . . Unidentified Prototypes . | . . . Corrupted Parts 1 | . . 1 System Corruption 2 | . . 2 Parts Lost 18 | . . 18 Power 1 | . . 1 Propulsion 11 | . . 11 Utility . | . . . Weapon 6 | . . 6 Highest Loss Streak 16 | . . 16 To Critical Strikes . | . . . Average Backups 4 | . 4 4 Power . | . . . Propulsion 3 | . 4 1 Utility . | . . 1 Weapon . | . . . Tool/Special . | . . . Unused Backups 5 | . . 5 Power . | . . . Propulsion 2 | . . 2 Utility 1 | . . 1 Weapon 2 | . . 2 Tool/Special . | . . . Average Slot Usage (%) 62 | . 72 45 Engine 10 | . 12 5 Wheel 19 | . 26 4 Flight 3 | . . 9 Storage 8 | . 11 2 Processor 9 | . 8 11 Energy Gun 9 | . 12 5 Slashing Weapon 1 | . . 4 Peak Build Rating 13 | . 6 13 Average Rating 5 | . 5 5 On Entrance 2 | . . 6 Naked Turns 4 | . 4 . Heaviest Build 17 | . 17 17 Greatest Support 42 | 3 20 42 Greatest Overweight (x) 5 | . . 5 Average Overweight (x) . | . . . Largest Inventory Capacity 10 | 5 10 10 Average Capacity 8 | 5 9 5 Most Carried 8 | . 6 8 Average Carried 4 | . 4 3 Final Capacity 10 | 5 10 5 Final Carried 6 | . 6 5 Class Distribution -------------------- 87% | Mutant 12% | Sprinter Dominant Class ---------------- Mutant | -10/Materials Mutant | -9/Materials Resources | -11 -10 -9 ----------- Run | Yrd Mat Mat Matter Collected 308 | 200 60 48 Remotely . | . . . Salvage Created 100 | . . 100 Parts 5 | . . 5 Haulers Intercepted . | . . . Recyclers Shooed . | . . . Parts Field Recycled . | . . . Retrieved Matter . | . . . Parts Self-Destructed . | . . . Prevented . | . . . Kills | -11 -10 -9 ------- Run | Yrd Mat Mat Combat Hostiles Destroyed 3 | . . 3 Melee 2 | . . 2 AOE 1 | . . 1 Classes Destroyed 2 | . . 2 Swarmer 1 | . . 1 Grunt 2 | . . 2 Best Kill Streak 2 | . . 2 Combat Bots Only 2 | . . 2 Max Kills in Single Turn 1 | . . 1 Gunslinging . | . . . Exploded 1 | . . 1 Melee 1 | . . 1 Uniques/NPCs Destroyed . | . . . Combat | -11 -10 -9 -------- Run | Yrd Mat Mat Hostile Shots Fired 141 | . . 141 Missed 43 | . . 43 Hits 98 | . . 98 Projectile 98 | . . 98 Critical Strikes 2 | . . 2 Damage Taken 1097 | . 7 1090 Core 402 | . . 402 Absorbed by Shields . | . . . Core Remaining (%) 100 | 100 100 . Volleys Fired 14 | . 4 10 Largest 1 | . 1 1 Hottest 40 | . 40 40 Shots Fired 15 | . 4 11 Gun 12 | . 4 8 Cannon . | . . . Launcher . | . . . Special 3 | . . 3 Kinetic 2 | . . 2 Thermal 4 | . . 4 Explosive . | . . . Electromagnetic 9 | . 4 5 Robot Hit Streak 3 | . . 3 Robot Miss Streak 4 | . 4 1 Penetration Max . | . . . Secondary Targets . | . . . Shots Hit Robots 19 | . . 19 Core Hits 7 | . . 7 Critical Kills . | . . . Critical Parts Destroyed . | . . . Critical Strikes . | . . . Melee Attacks 14 | . . 14 Impact . | . . . Slashing 14 | . . 14 Piercing . | . . . Sneak Attacks 1 | . . 1 Combat Hostiles . | . . . Follow-up Attacks . | . . . Damage Inflicted 370 | . 14 356 Guns 51 | . . 51 Cannons . | . . . Explosions 60 | . . 60 Melee 238 | . . 238 Ramming 14 | . 14 . Kinetic 7 | . . 7 Thermal 67 | . . 67 Explosive . | . . . Electromagnetic 44 | . . 44 Impact . | . . . Slashing 238 | . . 238 Piercing . | . . . Highest Corruption 2 | . . 2 Average Corruption 2 | . . 2 Corruption Purged . | . . . Corruption Blocked . | . . . Effects 2 | . . 2 Message Errors 1 | . . 1 Misfires 1 | . . 1 Overload Shots . | . . . Overflow Damage 19 | . . 19 Projectiles . | . . . Explosions 10 | . . 10 Melee 9 | . . 9 Knockbacks . | . . . Impact . | . . . Kinetic . | . . . Secondary . | . . . Self-Inflicted Damage 32 | . 7 25 Shots 1 | . . 1 Rammed 1 | . 1 . Targets Rammed 1 | . 1 . Kicked . | . . . Crushed . | . . . Highest Temperature 50 | . . 50 Average Temperature 15 | . . 15 Received Heat Transfer 486 | . . 486 Siege Activations . | . . . Martial Activations . | . . . Shielding Activations . | . . . Robots Disrupted . | . . . Combat Hostiles . | . . . Robots Corrupted . | . . . Combat Hostiles . | . . . Parts Fried . | . . . Impact Corruptions . | . . . Robots Melted . | . . . Combat Hostiles . | . . . Parts Melted . | . . . Heat Transferred 200 | . . 200 Parts Sabotaged . | . . . Parts Stolen . | . . . Parts Stripped . | . . . Power Chain Reactions 1 | . . 1 Alert | -11 -10 -9 ------- Run | Yrd Mat Mat Maximum Alert Level . | . . . Low Security (%) 100 | 100 100 100 Level 1 . | . . . Level 2 . | . . . Level 3 . | . . . Level 4 . | . . . Level 5 . | . . . High Security . | . . . Max Security . | . . . Peak Influence 80 | . 5 80 Initial . | . . . Average 8 | . . 23 Influence Increases 150 | . 5 145 Destroy 0b10 Robot/C 60 | . . 60 Destroy Leader 10 | . . 10 Successful Hack 5 | . 5 . Disable Machine 15 | . . 15 Lose Combat Pursuer 60 | . . 60 Influence Decreases 95 | . 5 90 Time Decay 55 | . 5 50 Lost Part 40 | . . 40 Squads Dispatched . | . . . Investigation . | . . . Extermination . | . . . Reinforcement . | . . . Assault . | . . . Garrison . | . . . Intercept . | . . . Searches Triggered . | . . . Construction Impeded . | . . . Haulers Reinforced . | . . . Active Scanning Responses . | . . . Cargo Convoy Interrupts . | . . . Stealth | -11 -10 -9 --------- Run | Yrd Mat Mat Distress Signals . | . . . Communications Jammed . | . . . Distress Signals . | . . . Times Spotted 20 | . 5 15 Peak Tracking Total 6 | . 2 6 Tactical Retreats 1 | . . 1 Traps | -11 -10 -9 ------- Run | Yrd Mat Mat Traps Triggered . | . . . Indirectly . | . . . Trap Hack Attempts . | . . . Triggered . | . . . Disarmed . | . . . Reprogrammed . | . . . Reused . | . . . Traps Extracted . | . . . Installed . | . . . Triggered . | . . . Machines | -11 -10 -9 ---------- Run | Yrd Mat Mat Machines Disabled 1 | . . 1 Max in Single Turn 1 | . . 1 Machines Repaired . | . . . Machines Dismantled . | . . . Machines Sabotaged . | . . . Overloaded Fab Kills . | . . . Hacking | -11 -10 -9 --------- Run | Yrd Mat Mat Machines Accessed 1 | . 1 . Terminals 1 | . 1 . Fabricators . | . . . Repair Stations . | . . . Recycling Units . | . . . Scanalyzers . | . . . Garrison Access . | . . . Total Hacks 1 | . 1 . Successful 1 | . 1 . Failed . | . . . Catastrophic . | . . . Database Lockouts . | . . . Manual . | . . . Terminals 1 | . 1 . Fabricators . | . . . Repair Stations . | . . . Recycling Units . | . . . Scanalyzers . | . . . Garrison Access . | . . . Terminal Hacks 1 | . 1 . Prototype ID Bank 1 | . 1 . Fabricator Hacks . | . . . Repair Station Hacks . | . . . Recycling Unit Hacks . | . . . Scanalyzer . | . . . Garrison Access Hacks . | . . . Unauthorized Hacks . | . . . Terminals . | . . . Fabricators . | . . . Repair Stations . | . . . Recycling Units . | . . . Scanalyzers . | . . . Garrison Access . | . . . Data Cores Recovered . | . . . Used . | . . . Hacking Detections . | . . . Full Trace Events . | . . . Feedback Events . | . . . Feedback Blocked . | . . . Robot Schematics Acquired . | . . . Robots Built . | . . . Authchips . | . . . Time . | . . . Total Robot Build Rating . | . . . Part Schematics Acquired . | . . . Parts Built . | . . . Authchips . | . . . Time . | . . . Total Part Build Rating . | . . . Parts Repaired . | . . . Time . | . . . Parts Recycled . | . . . Recycled Matter . | . . . Retrieved Matter . | . . . Retrieved Components . | . . . Parts Scanalyzed . | . . . Part Schematics Acquired . | . . . Parts Damaged . | . . . Bothacking | -11 -10 -9 ------------ Run | Yrd Mat Mat Used RIF Installer . | . . . Robots Hacked . | . . . Non-combat . | . . . Combat . | . . . Robot Hacks Applied . | . . . Relay Couplers Released . | . . . Fabnet Peak Effective % . | . . . Robots Rewired . | . . . Allies Hacked . | . . . Hacks Repelled . | . . . Allies | -11 -10 -9 -------- Run | Yrd Mat Mat Total Allies . | . . . Largest Group . | . . . Highest-Rated Group . | . . . Highest-Rated Ally . | . . . Total Orders . | . . . Ally Attacks . | . . . Total Damage . | . . . Kills . | . . . Allies Corrupted . | . . . Allies Melted . | . . . Intel | -11 -10 -9 ------- Run | Yrd Mat Mat Active Infowar (turns) . | . . . Robot Analysis Total . | . . . Derelict Logs Recovered . | . . . Drone Launches . | . . . Drone Recoveries . | . . . Exploration | -11 -10 -9 ------------- Run | Yrd Mat Mat Turns Passed 658 | 15 419 224 Spaces Moved 619 | 30 407 182 Core 121 | 30 6 85 Treads . | . . . Legs . | . . . Wheels 428 | . 401 27 Hover . | . . . Flight 70 | . . 70 Fastest Speed 26 | 50 50 26 Average Speed 74 | 50 79 67 Slowest Speed 355 | 50 80 355 Overloaded Moves . | . . . Propulsion Burnouts . | . . . Robots Hopped . | . . . Potential Cave-ins . | . . . Cave-ins Triggered . | . . . Exploration Rate (%) 21 | 3 44 17 Regions Visited 2 Branch Regions . Pre-discovered Areas . | . . . Known Exits Taken 1 | . 1 . Unknown Exits Taken 1 | 1 . . Scrap Searched . | . . . Spaces Dug . | . . . Terrain Destroyed . | . . . Melee . | . . . Projectile . | . . . AOE . | . . . Terrain Rammed . | . . . Walls Destroyed . | . . . Machines Disabled . | . . . Actions | -11 -10 -9 --------- Run | Yrd Mat Mat Total 768 | 29 494 245 Wait 71 | . 71 . Move 617 | 29 406 182 Hop . | . . . Pick Up 9 | . 6 3 Fast Attach 21 | . 6 15 Attach 5 | . . 5 Detach 6 | . . 6 Swap 1 | . . 1 Drop 9 | . . 9 Fire 14 | . 4 10 Melee 14 | . . 14 Ram 1 | . 1 . Kick . | . . . Crush . | . . . Escape Stasis . | . . . Rewire . | . . . Trap . | . . . Miscellaneous . | . . . Route ------- -11/Scrapyard -10/Materials (discovered 2 exits: *Mat / [*Min]) -9/Materials History --------- Turn | Location | Event 3 | -11/Scrapyard | Discovered new exit (range 15) 16 | -11/Scrapyard | Entered Materials 211 | -10/Materials | Discovered new exit (range 10) 304 | -10/Materials | Build established: Mutant 399 | -10/Materials | Discovered new exit (range 4) 404 | -10/Materials | Identified exit to Materials 435 | -10/Materials | Entered another Materials area 435 | -9/Materials | Evolved 2 slots: Propulsion x2 542 | -9/Materials | Core integrity fell below 50% 582 | -9/Materials | Lost 16 parts (1p11n4w) 587 | -9/Materials | Core integrity fell below 20% 659 | -9/Materials | Destroyed by G-34 Mercenary with Small Laser Last Messages --------------- 00563_ Acquired Mining Claw. 00566_ S-10 Pest Lgt. Assault Rifle ripped off. 00571_ Acquired Mining Claw. 00588_ Mining Claw destroyed. 00596_ G-47 Trooper destroyed. 00600_ Acquired Particle Gun. 00603_ Acquired Lgt. Nuclear Core. 00611_ G-34 Mercenary destroyed. 00614_ Acquired 35 matter. 00626_ G-34 Mercenary Sml. Laser ripped off. 00635_ System corrupted: FCS attempts to trigger Particle Gun. 00635_ System corrupted: Particle Gun misfires. 00635_ Electrolysis Chamber disabled. 00635_ Dropped Particle Gun. 00644_ Sneak attack on M-13 Machinist. 00644_ Destroyed Wheel. 00651_ K-01 Serf collects debris. 00654_ Mining Claw destroyed. 00655_ K-01 Serf collects debris. Map ----- +----------------------------------------------------+ | ???? "%" #????????????? | | ????#+########## % #????????????? | | ???????????????# #????????????? | | ??????????????## [%* #????????????? | | ??????????????#" !%! #????????????? | | ??????????????#T %%| #????????????? | | ??????????????#" ** #????????????? | | ??????????????## | #????????????? | | ???????????????# #????????????? | | ???????????????# ############?? | | ???????????????# ## #?? | | ???????????????/ + """""??? | | ???????????????# k ## """""#?? | | ???????????????# == ## """""#?? | | ???????????????# = ## """""#?? | | ???????????????# # """""#?? | | ??????????###### g # """""#?? | | ????????? g + """""??? | | ?????????????#### # #?? | | ???????????????## ##########?? | | ????????? ?????#T g ""#????????? | | ?????????" ????## T"#????????? | | ?????????? """??# "T" ""#????????? | | ?????????? """??# """ #####??????? | | ???????????"""??# u #??????? | | ??????????? ??# s @ #??????? | | ???????????? ??# #####+## + ""???? | | ???????????? ??# ## # #??????? | | ???????????##+### ## #? #??????? | | ?????####### + """ #??#??????? | | % ## """ #?????????? | | ###+?#########+###### """ #?????????? | | # = ! # #?????????? | | + """ # """ #?????????? | | # """ ]# """ #?????????? | | " ??#[ "" # """ #?????????? | | ????# # #?????????? | | ??????# / # ????????????? | | ??????#################?????????????? | | | | | | | | | | | | | | | | | | | | | | | +----------------------------------------------------+ Best States ------------- Heat Dissipation 28 Energy Generation 14 Energy Capacity 280 Matter Stores 300 Matter Capacity 300 Sight Range 16 Terrain Scan Density 10 Evasion (%) 64 Item Schematics ----------------- None Robot Schematics ------------------ None Fabricated ------------ Nothing Repaired ---------- Nothing Alien Tech Used ----------------- None Achievements -------------- None Challenges ------------ None Game ------ Seed HackingThrusterField Manual? 0 Play Time 00:09:30 Cumulative 18.5 hours Start 2025.08.23 @ 23:55:46 End 2025.08.24 @ 14:34:42 Sessions 2 Manual Loads 0 Difficulty Rogue Special Mode None Game No. 58 Rogue 58 Adventurer 0 Explorer 0 Win Type - Total 0 Types 0/0/0/0/0/0/0/0/0/0 Lore% 10 Gallery% 23 Achievement% 23 Wizard Run 0 Options --------- Layout 1 ASCII 0 Keyboard 1 Movement Vi Keybinds 0 Fullscreen 1 Font 16/SmallcapsGlow Map View 55x38 Zoom Use 2% Tactical HUD 1 Map Filters NONE Filters NONE Steam 1 RUN: 404e8620-39ff-432f-8344-5373f970d692